Cogmind - Beta 15 @@@ ROGUE MODE // 2025.10.10 @ 11:40:23 Player: beans Result: Destroyed by Y-45 Defender with Beam Rifle Performance ------------- Evolutions (1) 500 Regions Visited (3) 600 Robots Destroyed (28) 140 Value Destroyed (777) 777 Prototype IDs (1) 20 Alien Tech Used (0) 0 Bonus (0) 0 TOTAL SCORE: 2037 Bonus ------- None Cogmind --------- Core Integrity 0/400 Matter 500/500 Energy 100/100 System Corruption 0% Temperature Cool (9) Movement Treading (480) Ox4 Location -9/Materials Parts ------- > --- POWER (1) -------- (None) > --- PROPULSION (2) --- Light Treads > --- UTILITY (3) ------ Huge Storage Unit High-capacity Matter Pod > --- WEAPON (3) ------- Scythe > --- INVENTORY (25) --- Titanium Leg Titanium Leg Titanium Leg Titanium Leg Heat Sink Structural Scanner Improved Light Armor Plating Rocket Launcher Flail Peak State ------------ > --- POWER ------------ Improved Ion Engine > --- PROPULSION ------- Light Treads Improved Treads > --- UTILITY ---------- Huge Storage Unit High-capacity Matter Pod Improved Light Armor Plating > --- WEAPON ----------- Improved Assault Rifle Scythe > --- INVENTORY -------- Titanium Leg Titanium Leg Titanium Leg Titanium Leg Heat Sink Structural Scanner Improved Light Armor Plating Rocket Launcher Flail [Rating: 18] Favorites ----------- Power Improved Ion Engine Engine Improved Ion Engine Propulsion Improved Treads Treads Improved Treads Leg Aluminum Leg Utility High-capacity Matter Pod Storage High-capacity Matter Pod Protection Improved Light Armor Plating Weapon Improved Assault Rifle Ballistic Gun Improved Assault Rifle Launcher Rocket Launcher Impact Weapon Flail Slashing Weapon Scythe Build | -11 -10 -10 -9 ------- Run | Yrd Mat Min Mat Slots Evolved 2 | . . . 2 Power . | . . . . Propulsion . | . . . . Utility 1 | . . . 1 Weapon 1 | . . . 1 Parts Attached 21 | 5 3 . 13 Power 3 | 1 . . 2 Engine 3 | 1 . . 2 Core . | . . . . Reactor . | . . . . Propulsion 6 | 2 . . 4 Treads 3 | . . . 3 Leg 3 | 2 . . 1 Wheel . | . . . . Hover . | . . . . Flight . | . . . . Utility 5 | . 2 . 3 Device . | . . . . Storage 2 | . . . 2 Processor . | . . . . Hackware . | . . . . Protection 3 | . 2 . 1 Artifact . | . . . . Weapon 7 | 2 1 . 4 Energy Gun . | . . . . Energy Cannon . | . . . . Ballistic Gun 4 | 2 . . 2 Ballistic Cannon . | . . . . Launcher 1 | . . . 1 Special Weapon . | . . . . Impact Weapon 1 | . 1 . . Slashing Weapon 1 | . . . 1 Piercing Weapon . | . . . . Special Melee Weapon . | . . . . Unidentified Prototypes 1 | . . . 1 Parts Lost 14 | . 6 . 8 Power 3 | . 1 . 2 Propulsion 4 | . 2 . 2 Utility 3 | . 1 . 2 Weapon 4 | . 2 . 2 Highest Loss Streak 6 | . 6 . 4 To Critical Strikes 1 | . 1 . . Average Backups 5 | . 3 4 5 Power . | . 1 1 . Propulsion 1 | . . 1 1 Utility 2 | . 1 2 2 Weapon 1 | . . . 2 Tool/Special . | . . . . Unused Backups 7 | . . . 7 Power . | . . . . Propulsion 4 | . . . 4 Utility 3 | . . . 3 Weapon . | . . . . Tool/Special . | . . . . Average Slot Usage (%) 58 | . 72 28 57 Engine 5 | . 10 . 5 Treads 15 | . . . 17 Leg 3 | . 23 . . Storage 14 | . . . 17 Protection 5 | . 12 14 4 Ballistic Gun 11 | . 23 . 10 Impact Weapon 1 | . 1 14 1 Peak Build Rating 18 | 5 7 3 18 Average Rating 9 | 3 5 3 9 On Entrance 2 | . 5 3 3 Naked Turns 4 | . . . 4 Heaviest Build 97 | 6 10 3 97 Greatest Support 46 | 20 20 3 46 Greatest Overweight (x) 4 | . . . 4 Average Overweight (x) . | . . . 1 Largest Inventory Capacity 25 | 5 5 5 25 Average Capacity 18 | 5 5 5 20 Most Carried 10 | 4 5 5 10 Average Carried 5 | . 3 4 5 Final Capacity 25 | 5 5 5 25 Final Carried 9 | 1 4 5 9 Class Distribution -------------------- 100% | Mutant Dominant Class ---------------- Mutant | -10/Materials Mutant | -10/Mines Mutant | -9/Materials Resources | -11 -10 -10 -9 ----------- Run | Yrd Mat Min Mat Matter Collected 937 | 235 77 30 595 Remotely . | . . . . Salvage Created 928 | . 144 . 784 Parts 65 | . 12 . 53 Haulers Intercepted . | . . . . Recyclers Shooed 3 | . 1 . 2 Parts Field Recycled . | . . . . Retrieved Matter . | . . . . Parts Self-Destructed . | . . . . Prevented . | . . . . Kills | -11 -10 -10 -9 ------- Run | Yrd Mat Min Mat Combat Hostiles Destroyed 24 | . 7 . 17 Melee 1 | . . . 1 Guns 18 | . 5 . 13 AOE 2 | . . . 2 Classes Destroyed 7 | . 3 . 4 Worker 2 | . . . 2 Builder 1 | . 1 . . Watcher 1 | . . . 1 Swarmer 6 | . 6 . . Grunt 14 | . 1 . 13 Duelist 1 | . . . 1 Sentry 3 | . . . 3 Best Kill Streak 4 | . 4 . 3 Combat Bots Only 3 | . 3 . 3 Max Kills in Single Turn 2 | . 2 . 2 Gunslinging . | . . . . Exploded 2 | . . . 2 Melee 1 | . . . 1 Uniques/NPCs Destroyed . | . . . . Combat | -11 -10 -10 -9 -------- Run | Yrd Mat Min Mat Hostile Shots Fired 235 | . 110 . 125 Missed 49 | . 27 . 22 Hits 186 | . 83 . 103 Melee 9 | . . . 9 Projectile 177 | . 83 . 94 Critical Strikes 6 | . 1 . 5 Damage Taken 2323 | . 805 . 1518 Core 657 | . 249 . 408 Absorbed by Shields . | . . . . Redirected to Shielding 50 | . 46 . 4 Core Remaining (%) 50 | 100 . . . Volleys Fired 104 | . 27 . 77 Largest 2 | . 2 . 1 Hottest 40 | . 40 . 33 Shots Fired 130 | . 53 . 77 Gun 128 | . 53 . 75 Cannon . | . . . . Launcher 2 | . . . 2 Special . | . . . . Kinetic 128 | . 53 . 75 Thermal . | . . . . Explosive 2 | . . . 2 Electromagnetic . | . . . . Robot Hit Streak 22 | . 6 . 22 Robot Miss Streak 6 | . 6 . 1 Penetration Max . | . . . . Secondary Targets 2 | . 2 . . Max Gunslinging Chain 1 | . 1 . . Shots Hit Robots 110 | . 32 . 78 Core Hits 40 | . 9 . 31 Critical Kills . | . . . . Critical Parts Destroyed 4 | . 1 . 3 Critical Strikes 4 | . 1 . 3 Destroy 1 | . . . 1 Smash 3 | . 1 . 2 Melee Attacks 23 | . 3 . 20 Impact 15 | . 3 . 12 Slashing 8 | . . . 8 Piercing . | . . . . Sneak Attacks 1 | . . . 1 Combat Hostiles . | . . . . Follow-up Attacks . | . . . . Damage Inflicted 1998 | . 411 . 1587 Guns 1318 | . 332 . 986 Cannons . | . . . . Explosions 171 | . . . 171 Melee 509 | . 79 . 430 Ramming . | . . . . Kinetic 1318 | . 332 . 986 Thermal . | . . . . Explosive 171 | . . . 171 Electromagnetic . | . . . . Impact 321 | . 79 . 242 Slashing 188 | . . . 188 Piercing . | . . . . Highest Corruption . | . . . . Average Corruption . | . . . . Corruption Purged . | . . . . Corruption Blocked . | . . . . Overload Shots . | . . . . Overflow Damage 105 | . 59 . 46 Projectiles . | . . . . Explosions . | . . . . Melee 105 | . 59 . 46 Knockbacks . | . . . . Impact . | . . . . Kinetic . | . . . . Secondary . | . . . . Self-Inflicted Damage 3 | . . . 3 Shots 1 | . . . 1 Rammed . | . . . . Targets Rammed . | . . . . Kicked . | . . . . Crushed . | . . . . Highest Temperature 32 | . 32 . 6 Average Temperature 8 | . 8 . 6 Received Heat Transfer 762 | . 201 . 561 Siege Activations . | . . . . Martial Activations . | . . . . Shielding Activations . | . . . . Robots Disrupted . | . . . . Combat Hostiles . | . . . . Robots Corrupted 3 | . 2 . 1 Combat Hostiles 3 | . 2 . 1 Parts Fried 1 | . 1 . . Impact Corruptions 5 | . 2 . 3 Robots Melted . | . . . . Combat Hostiles . | . . . . Parts Melted . | . . . . Heat Transferred . | . . . . Parts Sabotaged . | . . . . Parts Stolen . | . . . . Parts Stripped . | . . . . Power Chain Reactions . | . . . . Alert | -11 -10 -10 -9 ------- Run | Yrd Mat Min Mat Maximum Alert Level . | . . . . Low Security (%) 100 | 100 100 100 100 Level 1 . | . . . . Level 2 . | . . . . Level 3 . | . . . . Level 4 . | . . . . Level 5 . | . . . . High Security . | . . . . Max Security . | . . . . Peak Influence 96 | . 86 27 96 Initial 27 | . . 27 2 Average 25 | . 20 17 26 Influence Increases 703 | . 206 . 497 Destroy 0b10 Robot/C 480 | . 140 . 340 Destroy 0b10 Robot/NC 20 | . 5 . 15 Destroy Leader 102 | . 30 . 72 Disable Machine 15 | . . . 15 Destroy Structure 26 | . 1 . 25 Lose Combat Pursuer 60 | . 30 . 30 Influence Decreases 699 | . 136 63 500 Entered New Map 48 | . . 43 5 Time Decay 531 | . 76 20 435 Lost Part 120 | . 60 . 60 Squads Dispatched 3 | . 1 . 2 Investigation . | . . . . Extermination . | . . . . Reinforcement 3 | . 1 . 2 Assault . | . . . . Garrison . | . . . . Intercept . | . . . . Searches Triggered . | . . . . Construction Impeded . | . . . . Haulers Reinforced . | . . . . Active Scanning Responses . | . . . . Cargo Convoy Interrupts . | . . . . Stealth | -11 -10 -10 -9 --------- Run | Yrd Mat Min Mat Distress Signals 5 | . 2 . 3 Communications Jammed . | . . . . Distress Signals . | . . . . Times Spotted 40 | . 15 . 25 Peak Tracking Total 8 | . 8 . 4 Tactical Retreats 3 | . 1 . 2 Traps | -11 -10 -10 -9 ------- Run | Yrd Mat Min Mat Traps Triggered . | . . . . Indirectly . | . . . . Trap Hack Attempts . | . . . . Triggered . | . . . . Disarmed . | . . . . Reprogrammed . | . . . . Reused . | . . . . Traps Extracted . | . . . . Installed . | . . . . Triggered . | . . . . Machines | -11 -10 -10 -9 ---------- Run | Yrd Mat Min Mat Machines Disabled 1 | . . . 1 Max in Single Turn 1 | . . . 1 Machines Repaired . | . . . . Machines Dismantled . | . . . . Machines Sabotaged . | . . . . Overloaded Fab Kills . | . . . . Hacking | -11 -10 -10 -9 --------- Run | Yrd Mat Min Mat Machines Accessed . | . . . . Terminals . | . . . . Fabricators . | . . . . Repair Stations . | . . . . Recycling Units . | . . . . Scanalyzers . | . . . . Garrison Access . | . . . . Total Hacks . | . . . . Successful . | . . . . Failed . | . . . . Catastrophic . | . . . . Database Lockouts . | . . . . Manual . | . . . . Terminals . | . . . . Fabricators . | . . . . Repair Stations . | . . . . Recycling Units . | . . . . Scanalyzers . | . . . . Garrison Access . | . . . . Terminal Hacks . | . . . . Fabricator Hacks . | . . . . Repair Station Hacks . | . . . . Recycling Unit Hacks . | . . . . Scanalyzer . | . . . . Garrison Access Hacks . | . . . . Unauthorized Hacks . | . . . . Terminals . | . . . . Fabricators . | . . . . Repair Stations . | . . . . Recycling Units . | . . . . Scanalyzers . | . . . . Garrison Access . | . . . . Data Cores Recovered . | . . . . Used . | . . . . Hacking Detections . | . . . . Full Trace Events . | . . . . Feedback Events . | . . . . Feedback Blocked . | . . . . Robot Schematics Acquired . | . . . . Robots Built . | . . . . Authchips . | . . . . Time . | . . . . Total Robot Build Rating . | . . . . Part Schematics Acquired . | . . . . Parts Built . | . . . . Authchips . | . . . . Time . | . . . . Total Part Build Rating . | . . . . Parts Repaired . | . . . . Time . | . . . . Parts Recycled . | . . . . Recycled Matter . | . . . . Retrieved Matter . | . . . . Retrieved Components . | . . . . Parts Scanalyzed . | . . . . Part Schematics Acquired . | . . . . Parts Damaged . | . . . . Bothacking | -11 -10 -10 -9 ------------ Run | Yrd Mat Min Mat Used RIF Installer . | . . . . Robots Hacked . | . . . . Non-combat . | . . . . Combat . | . . . . Robot Hacks Applied . | . . . . Relay Couplers Released . | . . . . Fabnet Peak Effective % . | . . . . Robots Rewired . | . . . . Allies Hacked . | . . . . Hacks Repelled . | . . . . Allies | -11 -10 -10 -9 -------- Run | Yrd Mat Min Mat Total Allies . | . . . . Largest Group . | . . . . Highest-Rated Group . | . . . . Highest-Rated Ally . | . . . . Total Orders . | . . . . Ally Attacks . | . . . . Total Damage . | . . . . Kills . | . . . . Allies Corrupted . | . . . . Allies Melted . | . . . . Intel | -11 -10 -10 -9 ------- Run | Yrd Mat Min Mat Active Infowar (turns) . | . . . . Robot Analysis Total . | . . . . Derelict Logs Recovered . | . . . . Drone Launches . | . . . . Drone Recoveries . | . . . . Exploration | -11 -10 -10 -9 ------------- Run | Yrd Mat Min Mat Turns Passed 2300 | 76 258 56 1910 Spaces Moved 1006 | 68 170 110 658 Core 218 | 22 59 110 27 Treads 560 | . . . 560 Legs 228 | 46 111 . 71 Wheels . | . . . . Hover . | . . . . Flight . | . . . . Fastest Speed 50 | 50 50 50 50 Average Speed 191 | 97 95 50 249 Slowest Speed 480 | 120 120 50 480 Overloaded Moves . | . . . . Propulsion Burnouts . | . . . . Robots Hopped . | . . . . Potential Cave-ins . | . . . . Cave-ins Triggered . | . . . . Exploration Rate (%) 34 | 3 46 39 51 Regions Visited 3 Branch Regions 1 Pre-discovered Areas . | . . . . Known Exits Taken . | . . . . Unknown Exits Taken 3 | 1 1 1 . Scrap Searched 1 | . . 1 . Spaces Dug . | . . . . Terrain Destroyed 23 | . . . 23 Melee . | . . . . Projectile . | . . . . AOE 23 | . . . 23 Terrain Rammed . | . . . . Walls Destroyed . | . . . . Machines Disabled . | . . . . Actions | -11 -10 -10 -9 --------- Run | Yrd Mat Min Mat Total 1223 | 78 212 110 823 Wait 36 | . 4 . 32 Move 1003 | 67 169 109 658 Hop . | . . . . Pick Up 31 | 6 6 1 18 Fast Attach . | . . . . Attach 24 | 5 3 . 16 Detach 2 | . . . 2 Swap . | . . . . Drop . | . . . . Fire 104 | . 27 . 77 Melee 23 | . 3 . 20 Ram . | . . . . Kick . | . . . . Crush . | . . . . Escape Stasis . | . . . . Rewire . | . . . . Trap . | . . . . Miscellaneous . | . . . . Route ------- -11/Scrapyard -10/Materials -10/Mines -9/Materials (discovered 1 exit: [*Mat]) History --------- Turn | Location | Event 4 | -11/Scrapyard | Discovered new exit (range 14) 77 | -11/Scrapyard | Entered Materials 296 | -10/Materials | Core integrity fell below 50% 307 | -10/Materials | Build established: Mutant 315 | -10/Materials | Discovered new exit (range 14) 321 | -10/Materials | Core integrity fell below 20% 323 | -10/Materials | Lost 6 parts (1p2n1u2w) 335 | -10/Materials | Entered Mines 379 | -10/Mines | Discovered new exit (range 11) 391 | -10/Mines | Entered Materials 391 | -9/Materials | Evolved 2 slots: Utility x1, Weapon x1 558 | -9/Materials | Lost 3 parts (1p1u1w) 964 | -9/Materials | Core integrity fell below 50% 1648 | -9/Materials | Discovered new exit (range 5) 1771 | -9/Materials | Core integrity fell below 20% 2301 | -9/Materials | Destroyed by Y-45 Defender with Beam Rifle Last Messages --------------- K-01 Serf cleans the Nuclear Reactor. G-34 Mercenary destroyed. K-01 Serf collects debris. Imp. Assault Rifle destroyed. Acquired 29 matter. K-01 Serf cleans the Nuclear Reactor. Imp. Treads destroyed. K-01 Serf collects debris. K-01 Serf cleans the Nuclear Reactor. K-01 Serf collects debris. G-34 Mercenary destroyed. K-01 Serf collects debris. Imp. Ion Engine destroyed. K-01 Serf collects debris. K-01 Serf cleans the Nuclear Reactor. K-01 Serf collects debris. Imp. Light Armor Plating destroyed. K-01 Serf cleans the Nuclear Reactor. Critical hit (Burn: +37). K-01 Serf collects debris. Map ----- +----------------------------------------------------+ | | | ?????????????????????????????????????????????????? | | ?????????????????????????????????????????????????? | | ?????????????????????????????????????????????????? | | ?????????????????????????????????????????????????? | | ?????????????????????????????????????????????????? | | ?????????????????????????????????????????????????? | | ?????????????????????????????????????????????????? | | ?????????????????????????????????????????????????? | | ?????????????????????????????????????????????????? | | ?????????????????????????????????????????????????? | | ?????????????????????????????????????????????????? | | ?????????????????????????????????????????????????? | | ?????????????????????????????????????????????????? | | ?????????????????????????????????????????????????? | | ?????????????????????????????????????????????????? | | ?????????????????????????????????????????????????? | | ?????????????????????????????????????????????????? | | ?????????????????????????????????????????????????? | | ?????????????????????????????????????????????????? | | ?????????????????????????????????????????????????? | | ?????????????????????????????????????#???????????? | | ????????????????????????##+####### #???????????? | | ??????????????????????### #???????????? | | ??????????????????????? Y ????????????? | | ????????????????????????#@ """ """??????????????? | | ????????????????????????#[=""" """??#???????????? | | ????????????????????????#*%""" """ +???????????? | | ???????????????????????## = #???????????? | | ???????????????????????#" %k #???????????? | | ???????????????????????#T [""" """ #???????????? | | ???????????????????????#" """ """ # #?????????? | | ???????????????????????## """ """ #?????????? | | ????????????????????????# #???????????? | | ????????????????????????# #???????????? | | ????????????????????????# ^ ####+#####????????? | | ????????????????????????# t # #????????? | | ????????????????????????# # #????????? | | ??????????????????####### # =""" #????????? | | ???????????######?# +*[""" #????????? | | ???????????# * # ###### #####%[""" #????????? | | ???????????# # #????? ??#!*""" #????????? | | ???????????# "" " #????? ?#% """ #????????? | | ???????????# S"" # #????? # #????????? | | ???????????# "" # #????? # #????????? | | ???????????# ?# #?????############+##????????? | | ???????????######?# #????????????????# #?????????? | | ?????????########## #???????????###### #?????????? | | ?????????# #???????????#!! ## ######????? | | ?######### #???????????# #????? | +----------------------------------------------------+ Best States ------------- Heat Dissipation 28 Energy Generation 12 Energy Capacity 265 Matter Stores 500 Matter Capacity 500 Sight Range 16 Terrain Scan Density 10 Armor Coverage 150 Core Shielding 20 Evasion (%) 55 Recoil Reduction 2 Item Schematics ----------------- None Robot Schematics ------------------ None Fabricated ------------ Nothing Repaired ---------- Nothing Alien Tech Used ----------------- None Achievements -------------- None Challenges ------------ None Game ------ Seed SpreadUtilitySpoofer Manual? 0 Play Time 00:15:09 Cumulative 178.0 hours Start 2025.10.10 @ 08:54:16 End 2025.10.10 @ 11:40:23 Sessions 1 Manual Loads 0 Difficulty Rogue Special Mode None Game No. 546 Rogue 545 Adventurer 1 Explorer 0 Win Type - Total 0 Types 0/0/0/0/0/0/0/0/0/0 Lore% 61 Gallery% 58 Achievement% 44 Wizard Run 0 Options --------- Layout 1 ASCII 0 Keyboard 0 Movement Mouse Keybinds 0 Fullscreen 1 Font 24/Smallcaps Map View 50x35 Zoom Use 0% Tactical HUD 0 Map Filters NONE Filters NONE Steam 1 RUN: 97c716a7-0a2b-49ad-81a5-b1237ad769d5